lending/lending_fUSD_20240512
["ID","MTS","AMOUNT","RATE_DAILY","PERIOD"]
[326854201,1715514640923,-42576.69,0.00012898,2]
[326854202,1715514640932,-42576.69,0.00012898,3]
[326854203,1715514640942,-42576.69,0.00012898,4]
[326854204,1715514640951,-500.0,0.00012898,2]
[326854205,1715514640961,-500.0,0.00012898,3]
[326854206,1715514640970,-500.0,0.00012898,4]
[326854207,1715514640979,-500.0,0.00012898,2]
[326854208,1715514640989,-500.0,0.00012898,5]
[326854209,1715514640998,-3269.0,0.00012898,2]
[326854210,1715514641008,-500.0,0.00012898,3]
[326854211,1715514641018,-500.0,0.00012898,6]
[326854212,1715514641028,-3269.0,0.00012898,3]
[326854213,1715514641037,-500.0,0.00012898,4]
[326854214,1715514641046,-3269.0,0.00012898,4]
[326854215,1715514641055,-337.9131537,0.00012898,5]
[326854216,1715514641064,-500.0,0.00012898,2]
[326854217,1715514641075,-500.0,0.00012898,3]
[326854218,1715514641084,-500.0,0.00012898,4]
[326854219,1715514641094,-500.0,0.00012898,5]
[326854220,1715514641104,-500.0,0.00012898,6]
[326854221,1715514641113,-500.0,0.00012898,2]
[326854222,1715514641122,-1078.05,0.00012898,2]
[326854223,1715514641131,-500.0,0.00012898,3]
[326854224,1715514641141,-500.0,0.00012898,4]
[326854225,1715514641150,-1078.05,0.00012898,3]
[326854226,1715514641160,-1078.05,0.00012898,4]
[326854227,1715514641169,-500.0,0.00012898,5]
[326854228,1715514641178,-1078.05,0.00012898,5]
[326854229,1715514641188,-500.0,0.00012898,6]
[326854230,1715514641197,-1078.05,0.00012898,6]
[326854231,1715514641207,-3829.65,0.00012898,2]
[326854232,1715514641216,-3829.65,0.00012898,3]
[326854233,1715514641225,-3829.65,0.00012898,4]
[326854234,1715514641234,-1186.24,0.00012898,2]
[326854235,1715514641244,-1186.24,0.00012898,3]
[326854236,1715514641253,-1403.61,0.00012898,2]
[326854237,1715514641263,-1186.24,0.00012898,4]
[326854238,1715514641272,-1403.61,0.00012898,3]
[326854239,1715514641281,-1186.24,0.00012898,5]
[326854240,1715514641290,-1403.61,0.00012898,4]
[326854241,1715514641300,-1186.24,0.00012898,6]
[326854242,1715514641310,-500.0,0.00012898,2]
[326854243,1715514641319,-528.06544638,0.00012898,3]
[326854244,1715514641328,-500.0,0.00012898,2]
[326854245,1715514641338,-500.0,0.00012898,3]
[326854246,1715514641347,-500.0,0.00012898,4]
[326854247,1715514641357,-500.0,0.00012898,2]
[326854248,1715514641366,-500.0,0.00012898,5]
[326854249,1715514641375,-500.0,0.00012898,6]
[326854250,1715514641384,-500.0,0.00012898,3]
[326854251,1715514641394,-500.0,0.00012898,2]
[326854252,1715514641403,-500.0,0.00012898,4]
[326854253,1715514641413,-500.0,0.00012898,3]
[326854254,1715514641423,-524.90925552,0.00012898,4]
[326854255,1715514641432,-500.0,0.00012898,5]
[326854256,1715514641442,-500.0,0.00012898,6]
[326854257,1715514641451,-500.0,0.00012898,2]
[326854258,1715514641460,-500.0,0.00012898,3]
[326854259,1715514641470,-500.0,0.00012898,4]
[326854260,1715514641479,-500.0,0.00012898,5]
[326854261,1715514641488,-500.0,0.00012898,6]
[326854262,1715514641498,-18922.94,0.00012898,2]
[326854263,1715514641508,-989.68,0.00012898,2]
[326854264,1715514641517,-18922.94,0.00012898,3]
[326854265,1715514641526,-989.68,0.00012898,3]
[326854266,1715514641536,-989.68,0.00012898,4]
[326854267,1715514641545,-18922.94,0.00012898,4]
[326854268,1715514641554,-989.68,0.00012898,5]
[326854269,1715514641564,-989.68,0.00012898,6]
[326854270,1715514641574,-500.0,0.00012898,2]
[326854271,1715514641583,-500.0,0.00012898,3]
[326854272,1715514641592,-500.0,0.00012898,4]
[326854273,1715514641602,-500.0,0.00012898,5]
[326854274,1715514641611,-500.0,0.00012898,6]
[326854275,1715514641621,-500.0,0.00012898,2]
[326854276,1715514641630,-500.0,0.00012898,3]
[326854277,1715514641640,-500.0,0.00012898,4]
[326854278,1715514641649,-590.66,0.00012898,2]
[326854279,1715514641658,-500.0,0.00012898,5]
[326854280,1715514641672,-590.66,0.00012898,3]
[326854281,1715514641682,-500.0,0.00012898,6]
[326854282,1715514641692,-500.0,0.00012898,2]
[326854283,1715514641701,-500.0,0.00012898,3]
[326854284,1715514641711,-500.0,0.00012898,4]
[326854285,1715514641721,-4108.75,0.00012898,2]
[326854286,1715514641730,-500.0,0.00012898,5]
[326854287,1715514641740,-4108.75,0.00012898,3]
[326854288,1715514641750,-500.0,0.00012898,6]
[326854289,1715514641760,-4108.75,0.00012898,4]
[326854290,1715514641769,-1006.15,0.00012898,2]
[326854291,1715514641779,-1006.15,0.00012898,3]
[326854292,1715514641789,-1006.15,0.00012898,4]
[326854293,1715514641798,-1006.15,0.00012898,5]
[326854294,1715514641808,-1006.15,0.00012898,6]
[326854295,1715514641818,-590.66,0.00012898,4]
[326854296,1715514641828,-590.66,0.00012898,5]
[326854297,1715514641837,-590.66,0.00012898,6]
[326854298,1715514641847,-500.0,0.00012898,2]
[326854299,1715514641857,-500.0,0.00012898,3]
[326854300,1715514641866,-500.0,0.00012898,4]
[326854301,1715514641876,-500.0,0.00012898,5]
[326854302,1715514641885,-500.0,0.00012898,6]
[326854303,1715514641895,-500.0,0.00012898,2]
[326854304,1715514641904,-500.0,0.00012898,3]
[326854305,1715514641913,-500.0,0.00012898,4]
[326854306,1715514641923,-500.0,0.00012898,5]
[326854307,1715514641932,-935.53,0.00012898,2]
[326854308,1715514641942,-500.0,0.00012898,6]
[326854309,1715514641952,-935.53,0.00012898,3]
[326854310,1715514641962,-935.53,0.00012898,4]
[326854311,1715514641971,-2875.44,0.00012898,2]
[326854312,1715514641981,-2875.44,0.00012898,3]
[326854313,1715514641991,-2875.44,0.00012898,4]
[326854314,1715514642001,-500.0,0.00012898,2]
[326854315,1715514642011,-500.0,0.00012898,3]
[326854316,1715514642021,-213.88227012,0.00012898,4]
[326854317,1715514642031,-525.91491697,0.00012898,2]
[326854318,1715514642041,-181.5,0.00012898,2]
[326854319,1715514642050,-181.5,0.00012898,3]
[326854320,1715514642060,-181.5,0.00012898,4]
[326854321,1715514642069,-181.5,0.00012898,5]
[326854322,1715514642079,-181.5,0.00012898,6]
[326854323,1715514642088,-500.0,0.00012898,2]
[326854324,1715514642097,-683.99,0.00012898,2]
[326854325,1715514642106,-500.0,0.00012898,3]
[326854326,1715514642116,-683.99,0.00012898,3]
[326854327,1715514642124,-500.0,0.00012898,4]
[326854328,1715514642134,-683.99,0.00012898,4]
[326854329,1715514642143,-500.0,0.00012898,5]
[326854330,1715514642152,-683.99,0.00012898,5]
[326854331,1715514642161,-542.62430924,0.00012898,6]
[326854332,1715514642170,-2650.49,0.00012898,2]
[326854333,1715514642179,-2650.49,0.00012898,3]
[326854334,1715514642189,-683.99,0.00012898,6]
[326854335,1715514642199,-2650.49,0.00012898,4]
[326854336,1715514642209,-500.0,0.00012898,2]
[326854337,1715514642218,-500.0,0.00012898,3]
[326854338,1715514642227,-500.0,0.00012898,4]
[326854339,1715514642236,-500.0,0.00012898,5]
[326854340,1715514642246,-500.0,0.00012898,6]
[326854341,1715514642255,-500.0,0.00012898,2]
[326854342,1715514642265,-500.0,0.00012898,3]
[326854343,1715514642274,-500.0,0.00012898,4]
[326854344,1715514642283,-500.0,0.00012898,2]
[326854345,1715514642305,-500.0,0.00012898,3]
[326854346,1715514642315,-500.0,0.00012898,4]
[326854347,1715514642324,-519.0919954,0.00012898,5]
[326854348,1715514642334,-3650.4,0.00012898,2]
[326854349,1715514642344,-500.0,0.00012898,2]
[326854350,1715514642353,-3650.4,0.00012898,3]
[326854351,1715514642363,-500.0,0.00012898,3]
[326854352,1715514642374,-3650.4,0.00012898,4]
[326854353,1715514642383,-500.0,0.00012898,4]
[326854354,1715514642392,-524.17745283,0.00012898,5]
[326854355,1715514642402,-3776.18,0.00012898,2]
[326854356,1715514642411,-3776.18,0.00012898,3]
[326854357,1715514642421,-3776.18,0.00012898,4]
[326854358,1715514642431,-500.0,0.00012898,2]
[326854359,1715514642440,-500.0,0.00012898,3]
[326854360,1715514642449,-5000.0,0.00012898,2]
[326854361,1715514642458,-500.0,0.00012898,4]
[326854362,1715514642468,-5059.4378068,0.00012898,3]
[326854363,1715514642478,-514.70364552,0.00012898,5]
[326854364,1715514642487,-500.0,0.00012898,2]
[326854365,1715514642496,-500.0,0.00012898,3]
[326854366,1715514642505,-500.0,0.00012898,4]
[326854367,1715514642515,-1023.23,0.00012898,2]
[326854368,1715514642524,-500.0,0.00012898,2]
[326854369,1715514642534,-532.49038311,0.00012898,5]
[326854370,1715514642543,-1023.23,0.00012898,3]
[326854371,1715514642553,-1023.23,0.00012898,4]
[326854372,1715514642562,-500.0,0.00012898,3]
[326854373,1715514642571,-1023.23,0.00012898,5]
[326854374,1715514642580,-500.0,0.00012898,4]
[326854375,1715514642590,-1023.23,0.00012898,6]
[326854376,1715514642600,-513.59243124,0.00012898,2]
[326854377,1715514642610,-537.14315394,0.00012898,5]
[326854378,1715514642620,-500.0,0.00012898,2]
[326854379,1715514642629,-500.0,0.00012898,3]
[326854380,1715514642638,-500.0,0.00012898,4]
[326854381,1715514642647,-500.0,0.00012898,5]
[326854382,1715514642657,-500.0,0.00012898,6]
[326854383,1715514642670,-628.91176833,0.00012898,2]
[326854384,1715514642680,-500.0,0.00012898,2]
[326854385,1715514642690,-7235.73,0.00012898,2]
[326854386,1715514642699,-500.0,0.00012898,3]
[326854387,1715514642709,-7235.73,0.00012898,3]
[326854388,1715514642718,-500.0,0.00012898,4]
[326854389,1715514642728,-546.24,0.00012898,2]
[326854390,1715514642737,-7235.73,0.00012898,4]
[326854391,1715514642747,-500.0,0.00012898,5]
[326854392,1715514642757,-546.24,0.00012898,3]
[326854393,1715514642767,-500.0,0.00012898,6]
[326854394,1715514642776,-546.24,0.00012898,4]
[326854395,1715514642786,-500.0,0.00012898,2]
[326854396,1715514642795,-500.0,0.00012898,3]
[326854397,1715514642804,-500.0,0.00012898,4]
[326854398,1715514642814,-500.0,0.00012898,5]
[326854399,1715514642823,-500.0,0.00012898,6]
[326854400,1715514642833,-532.92757752,0.00012898,2]
[326854401,1715514642842,-662.93,0.00012898,7]
[326854402,1715514642852,-500.0,0.00012898,2]
[326854403,1715514642861,-662.93,0.00012898,8]
[326854404,1715514642872,-500.0,0.00012898,3]
[326854405,1715514642882,-662.93,0.00012898,9]
[326854406,1715514642892,-500.0,0.00012898,4]
[326854407,1715514642901,-500.0,0.00012898,5]
[326854408,1715514642911,-662.93,0.00012898,10]
[326854409,1715514642920,-516.43510844,0.00012898,6]
[326854410,1715514642930,-662.93,0.00012898,11]
[326854411,1715514642939,-500.0,0.00012898,2]
[326854412,1715514642949,-500.0,0.00012898,3]
[326854413,1715514642958,-512.1981999,0.00012898,2]
[326854414,1715514642967,-512.0387272,0.00012898,4]
[326854415,1715514642977,-500.0,0.00012898,2]
[326854416,1715514642987,-529.74309054,0.00012898,3]
[326854417,1715514642996,-500.0,0.00012898,3]
[326854418,1715514643005,-500.0,0.00012898,2]
[326854419,1715514643015,-500.0,0.00012898,4]
[326854420,1715514643024,-500.0,0.00012898,3]
[326854421,1715514643034,-500.0,0.00012898,4]
[326854422,1715514643043,-1511.79,0.00012898,2]
[326854423,1715514643052,-552.52642064,0.00012898,5]
[326854425,1715514643062,-1511.79,0.00012898,3]
[326854427,1715514643071,-1511.79,0.00012898,4]
[326854429,1715514643081,-1511.79,0.00012898,5]
[326854431,1715514643090,-1511.79,0.00012898,6]
[326854432,1715514643099,-2795.59,0.00012898,7]
[326854433,1715514643109,-2795.59,0.00012898,8]
[326854435,1715514643119,-620.9,0.00012898,2]
[326854438,1715514643129,-2795.59,0.00012898,9]
[326854440,1715514643138,-500.0,0.00012898,2]
[326854441,1715514643148,-2795.59,0.00012898,10]
[326854442,1715514643158,-500.0,0.00012898,3]
[326854443,1715514643167,-620.9,0.00012898,3]
[326854444,1715514643177,-2795.59,0.00012898,11]
[326854446,1715514643186,-620.9,0.00012898,4]
[326854448,1715514643195,-500.0,0.00012898,2]
[326854451,1715514643204,-306.46786738,0.00012898,4]
[326854454,1715514643214,-620.9,0.00012898,5]
[326854457,1715514643223,-500.0,0.00012898,3]
[326854460,1715514643232,-620.9,0.00012898,6]
[326854461,1715514643242,-526.197544,0.00012898,4]
[326854464,1715514643251,-517.43996343,0.00012898,2]
[326854468,1715514643261,-512.81,0.00012898,2]
[326854472,1715514643270,-512.81,0.00012898,3]
[326854475,1715514643279,-512.81,0.00012898,4]
[326854479,1715514643289,-673.8,0.00012898,2]
[326854483,1715514643298,-3205.22,0.00012898,7]
[326854487,1715514643308,-3205.22,0.00012898,8]
[326854490,1715514643317,-673.8,0.00012898,3]
[326854492,1715514643326,-3205.22,0.00012898,9]
[326854494,1715514643336,-673.8,0.00012898,4]
[326854495,1715514643350,-3205.22,0.00012898,10]
[326854496,1715514643360,-673.8,0.00012898,5]
[326854497,1715514643370,-673.8,0.00012898,6]
[326854498,1715514643379,-3205.22,0.00012898,11]
[326854499,1715514643389,-342.866482,0.00012898,2]
[326854500,1715514643399,-853.62,0.00012898,2]
[326854501,1715514643408,-634.75,0.00012898,2]
[326854502,1715514643418,-853.62,0.00012898,3]
[326854503,1715514643428,-634.75,0.00012898,3]
[326854504,1715514643437,-853.62,0.00012898,4]
[326854505,1715514643448,-634.75,0.00012898,4]
[326854506,1715514643457,-853.62,0.00012898,5]
[326854507,1715514643467,-853.62,0.00012898,6]
[326854508,1715514643477,-500.0,0.00012898,2]
[326854509,1715514643487,-505.71454072,0.00012898,3]
[326854510,1715514643497,-342.866482,0.00012898,2]
[326854511,1715514643507,-3113.48,0.00012898,7]
[326854512,1715514643516,-3113.48,0.00012898,8]
[326854513,1715514643526,-3113.48,0.00012898,9]
[326854514,1715514643536,-3113.48,0.00012898,10]
[326854515,1715514643546,-3113.48,0.00012898,11]
[326854516,1715514643555,-500.0,0.00012898,7]
[326854517,1715514643565,-500.0,0.00012898,8]
[326854518,1715514643575,-505.61778589,0.00012898,2]
[326854519,1715514643585,-618.26,0.00012898,2]
[326854520,1715514643595,-500.0,0.00012898,9]
[326854521,1715514643605,-502.3,0.00012898,2]
[326854522,1715514643615,-500.0,0.00012898,10]
[326854523,1715514643624,-618.26,0.00012898,3]
[326854524,1715514643634,-502.3,0.00012898,3]
[326854525,1715514643644,-500.0,0.00012898,11]
[326854526,1715514643653,-618.26,0.00012898,4]
[326854527,1715514643664,-502.3,0.00012898,4]
[326854528,1715514643675,-154.616775,0.00012898,2]
[326854529,1715514643685,-502.3,0.00012898,5]
[326854530,1715514643694,-502.3,0.00012898,6]
[326854531,1715514643704,-500.0,0.00012898,2]
[326854532,1715514643715,-500.0,0.00012898,2]
[326854534,1715514643725,-209.36450059,0.00012898,3]
[326854536,1715514643734,-620.21,0.00012898,2]
[326854538,1715514643746,-500.0,0.00012898,3]
[326854540,1715514643757,-620.21,0.00012898,3]
[326854542,1715514643767,-500.0,0.00012898,2]
[326854544,1715514643776,-500.0,0.00012898,4]
[326854546,1715514643786,-620.21,0.00012898,4]
[326854548,1715514643796,-500.0,0.00012898,5]
[326854550,1715514643806,-500.0,0.00012898,3]
[326854552,1715514643816,-500.0,0.00012898,6]
[326854554,1715514643826,-500.0,0.00012898,4]
[326854556,1715514643836,-500.0,0.00012898,5]
[326854559,1715514643846,-500.0,0.00012898,6]
[326854561,1715514643856,-507.01278951,0.00012898,2]
[326854563,1715514643865,-5175.73,0.00012898,2]
[326854566,1715514643875,-500.0,0.00012898,2]
[326854569,1715514643884,-5175.73,0.00012898,3]
[326854571,1715514643894,-500.0,0.00012898,3]
[326854573,1715514643904,-500.0,0.00012898,4]
[326854575,1715514643913,-5175.73,0.00012898,4]
[326854577,1715514643922,-500.0,0.00012898,5]
[326854579,1715514643932,-500.0,0.00012898,6]
[326854581,1715514643942,-500.0,0.00012898,7]
[326854583,1715514643952,-513.64615735,0.00012898,8]
[326854585,1715514643961,-8762.33,0.00012898,7]
[326854587,1715514643971,-8762.33,0.00012898,8]
[326854589,1715514643980,-8762.33,0.00012898,9]
[326854591,1715514643992,-8762.33,0.00012898,10]
[326854594,1715514644002,-8762.33,0.00012898,11]
[326854595,1715514644011,-500.0,0.00012898,2]
[326854598,1715514644021,-500.0,0.00012898,3]
[326854600,1715514644030,-500.0,0.00012898,4]
[326854602,1715514644040,-4440.83,0.00012898,7]
[326854604,1715514644050,-500.0,0.00012898,2]
[326854606,1715514644059,-500.0,0.00012898,5]
[326854608,1715514644069,-4440.83,0.00012898,8]
[326854610,1715514644078,-503.83432607,0.00012898,3]
[326854612,1715514644087,-500.0,0.00012898,6]
[326854614,1715514644097,-4440.83,0.00012898,9]
[326854616,1715514644107,-4440.83,0.00012898,10]
[326854618,1715514644116,-4440.83,0.00012898,11]
[326854620,1715514644126,-511.92607539,0.00012898,2]
[326854621,1715514644135,-1436.32,0.00012898,2]
[326854622,1715514644145,-1436.32,0.00012898,3]
[326854623,1715514644155,-1436.32,0.00012898,4]
[326854624,1715514644164,-500.0,0.00012898,2]
[326854625,1715514644174,-1436.32,0.00012898,5]
[326854626,1715514644183,-500.0,0.00012898,2]
[326854627,1715514644193,-500.0,0.00012898,3]
[326854628,1715514644202,-1436.32,0.00012898,6]
[326854629,1715514644211,-2980.87,0.00012898,2]
[326854630,1715514644220,-500.0,0.00012898,3]
[326854631,1715514644230,-500.0,0.00012898,4]
[326854632,1715514644240,-539.03134525,0.00012898,4]
[326854633,1715514644250,-2980.87,0.00012898,3]
[326854634,1715514644260,-2980.87,0.00012898,4]
[326854635,1715514644270,-6008.3,0.00012898,7]
[326854636,1715514644280,-6008.3,0.00012898,8]
[326854637,1715514644289,-500.0,0.00012898,2]
[326854638,1715514644300,-6008.3,0.00012898,9]
[326854639,1715514644310,-516.57184618,0.00012898,3]
[326854640,1715514644320,-6008.3,0.00012898,10]
[326854641,1715514644330,-6008.3,0.00012898,11]
[326854642,1715514644340,-730.85,0.00012898,2]
[326854643,1715514644350,-730.85,0.00012898,3]
[326854644,1715514644359,-730.85,0.00012898,4]
[326854645,1715514644677,-730.85,0.00012898,5]
[326854646,1715514644687,-2324.64,0.00012898,7]
[326854647,1715514644707,-730.85,0.00012898,6]
[326854648,1715514644727,-2324.64,0.00012898,8]
[326854649,1715514644749,-2324.64,0.00012898,9]
[326854650,1715514644770,-2324.64,0.00012898,10]
[326854651,1715514644790,-2324.64,0.00012898,11]
[326854652,1715514644812,-500.0,0.00012898,2]
[326854653,1715514644833,-500.0,0.00012898,3]
[326854654,1715514644856,-500.0,0.00012898,4]
[326854655,1715514644882,-500.0,0.00012898,5]
[326854656,1715514644908,-500.0,0.00012898,6]
[326854657,1715514644935,-586.8,0.00012898,2]
[326854658,1715514644944,-586.8,0.00012898,3]
[326854659,1715514644955,-586.8,0.00012898,4]
[326854660,1715514644965,-586.8,0.00012898,5]
[326854661,1715514644974,-586.8,0.00012898,6]
[326854662,1715514644984,-2694.38,0.00012898,7]
[326854663,1715514644995,-2694.38,0.00012898,8]
[326854664,1715514645004,-2694.38,0.00012898,9]
[326854665,1715514645016,-2694.38,0.00012898,10]
[326854666,1715514645025,-2694.38,0.00012898,11]
[326854667,1715514645034,-601.11,0.00012898,2]
[326854668,1715514645045,-601.11,0.00012898,3]
[326854669,1715514645054,-601.11,0.00012898,4]
[326854670,1715514645065,-575.86,0.00012898,2]
[326854671,1715514645075,-601.11,0.00012898,5]
[326854672,1715514645084,-575.86,0.00012898,3]
[326854673,1715514645094,-601.11,0.00012898,6]
[326854674,1715514645104,-2525.45,0.00012898,2]
[326854675,1715514645114,-575.86,0.00012898,4]
[326854676,1715514645124,-2525.45,0.00012898,3]
[326854677,1715514645133,-575.86,0.00012898,5]
[326854678,1715514645142,-575.86,0.00012898,6]
[326854679,1715514645151,-2525.45,0.00012898,4]
[326854680,1715514645161,-151.0,0.00012898,2]
[326854681,1715514645170,-2749.04,0.00012898,2]
[326854682,1715514645179,-2749.04,0.00012898,3]
[326854683,1715514645188,-2749.04,0.00012898,4]
[326854684,1715514645197,-11575.48,0.00012898,7]
[326854685,1715514645207,-500.0,0.00012898,2]
[326854686,1715514645216,-151.0,0.00012898,2]
[326854687,1715514645225,-497.61141814,0.00012898,3]
[326854688,1715514645235,-11575.48,0.00012898,8]
[326854689,1715514645245,-11575.48,0.00012898,9]
[326854690,1715514645254,-11575.48,0.00012898,10]
[326854691,1715514645263,-11575.48,0.00012898,11]
[326854692,1715514645273,-2140.04,0.00012898,7]
[326854693,1715514645282,-2140.04,0.00012898,8]
[326854694,1715514645292,-2140.04,0.00012898,9]
[326854695,1715514645301,-2140.04,0.00012898,10]
[326854696,1715514645311,-2140.04,0.00012898,11]
[326854697,1715514645320,-500.0,0.00012898,2]
[326854698,1715514645330,-187.98855793,0.00012898,3]
[326854699,1715514645339,-3021.43,0.00012898,2]
[326854700,1715514645349,-3021.43,0.00012898,3]
[326854701,1715514645359,-500.0,0.00012898,2]
[326854702,1715514645369,-3021.43,0.00012898,4]
[326854703,1715514645378,-500.0,0.00012898,3]
[326854704,1715514645388,-7177.18,0.00012898,2]
[326854705,1715514645397,-528.4266494,0.00012898,4]
[326854706,1715514645407,-7177.18,0.00012898,3]
[326854707,1715514645416,-7177.18,0.00012898,4]
[326854708,1715514645426,-4725.88,0.00012898,7]
[326854709,1715514645435,-500.0,0.00012898,2]
[326854710,1715514645445,-4725.88,0.00012898,8]
[326854711,1715514645455,-500.0,0.00012898,3]
[326854712,1715514645465,-500.0,0.00012898,4]
[326854713,1715514645475,-4725.88,0.00012898,9]
[326854714,1715514645484,-157.2210715,0.00012898,5]
[326854715,1715514645494,-500.0,0.00012898,2]
[326854716,1715514645503,-4725.88,0.00012898,10]
[326854717,1715514645513,-500.0,0.00012898,3]
[326854718,1715514645523,-4725.88,0.00012898,11]
[326854719,1715514645533,-500.0,0.00012898,4]
[326854720,1715514645542,-500.0,0.00012898,5]
[326854721,1715514645551,-500.0,0.00012898,6]
[326854722,1715514645561,-500.0,0.00012898,2]
[326854723,1715514645570,-1259.64,0.00012898,7]
[326854724,1715514645579,-500.0,0.00012898,3]
[326854725,1715514645588,-1259.64,0.00012898,8]
[326854726,1715514645598,-1259.64,0.00012898,9]
[326854727,1715514645607,-1259.64,0.00012898,10]
[326854728,1715514645617,-500.0,0.00012898,4]
[326854729,1715514645626,-500.0,0.00012898,2]
[326854730,1715514645635,-1259.64,0.00012898,11]
[326854731,1715514645645,-500.0,0.00012898,5]
[326854732,1715514645655,-500.0,0.00012898,3]
[326854733,1715514645668,-238.94420885,0.00012898,6]
[326854734,1715514645678,-151.0,0.00012898,2]
[326854735,1715514645688,-500.0,0.00012898,4]
[326854736,1715514645697,-151.0,0.00012898,2]
[326854737,1715514645708,-500.0,0.00012898,5]
[326854738,1715514645717,-500.0,0.00012898,6]
[326854739,1715514645727,-571.27068773,0.00012898,2]
[326854740,1715514645737,-500.0,0.00012898,2]
[326854741,1715514645747,-500.0,0.00012898,3]
[326854742,1715514645761,-3300.88,0.00012898,2]
[326854743,1715514645771,-500.0,0.00012898,4]
[326854744,1715514645780,-3300.88,0.00012898,3]
[326854745,1715514645790,-500.0,0.00012898,5]
[326854746,1715514645799,-3300.88,0.00012898,4]
[326854747,1715514645809,-151.0,0.00012898,2]
[326854748,1715514645818,-500.0,0.00012898,6]
[326854749,1715514645827,-151.0,0.00012898,2]
[326854750,1715514645837,-500.0,0.00012898,2]
[326854751,1715514645846,-1586.12,0.00012898,2]
[326854752,1715514645855,-9552.49,0.00012898,7]
[326854753,1715514645865,-1586.12,0.00012898,3]
[326854754,1715514645874,-500.0,0.00012898,3]
[326854755,1715514645887,-9552.49,0.00012898,8]
[326854756,1715514645896,-1586.12,0.00012898,4]
[326854757,1715514645906,-9552.49,0.00012898,9]
[326854758,1715514645915,-500.0,0.00012898,4]
[326854759,1715514645925,-9552.49,0.00012898,10]
[326854760,1715514645934,-9552.49,0.00012898,11]
[326854761,1715514645944,-500.0,0.00012898,5]
[326854762,1715514645951,-500.0,0.00012898,6]
[326854763,1715514645961,-500.0,0.00012898,2]
[326854764,1715514645971,-500.0,0.00012898,3]
[326854765,1715514645980,-979.0,0.00012898,2]
[326854766,1715514645990,-518.71105039,0.00012898,4]
[326854767,1715514645999,-979.0,0.00012898,3]
[326854768,1715514646010,-979.0,0.00012898,4]
[326854769,1715514646021,-979.0,0.00012898,5]
[326854770,1715514646030,-2449.73,0.00012898,7]
[326854771,1715514646040,-979.0,0.00012898,6]
[326854772,1715514646049,-2449.73,0.00012898,8]
[326854773,1715514646059,-500.0,0.00012898,2]
[326854774,1715514646069,-850.21608695,0.00012898,2]
[326854775,1715514646078,-2449.73,0.00012898,9]
[326854776,1715514646087,-500.0,0.00012898,3]
[326854777,1715514646096,-500.0,0.00012898,4]
[326854778,1715514646106,-2449.73,0.00012898,10]
[326854779,1715514646115,-500.0,0.00012898,5]
[326854780,1715514646124,-2449.73,0.00012898,11]
[326854781,1715514646134,-369.51287521,0.00012898,6]
[326854782,1715514646144,-5945.88,0.00012898,7]
[326854784,1715514646154,-5945.88,0.00012898,8]
[326854786,1715514646163,-5945.88,0.00012898,9]
[326854787,1715514646173,-5945.88,0.00012898,10]
[326854788,1715514646183,-5945.88,0.00012898,11]
[326854789,1715514646194,-500.0,0.00012898,2]